bitfinex-derivatives/quotes_BTCF0:USTF0_20250218
["timestamp","ask_amount","ask_price","bid_price","bid_amount"]
[1739889325995,0.00015581,96283.0,96261.0,0.3608]
[1739889326202,0.00015581,96283.0,96280.0,0.3608]
[1739889326501,0.00015581,96283.0,96272.0,0.3608]
[1739889326502,0.2077419,96281.0,96272.0,0.5685594]
[1739889326695,0.00015581,96283.0,96272.0,0.2077594]
[1739889326896,0.00015581,96283.0,96269.0,0.36235808]
[1739889327101,0.00015581,96283.0,96277.0,0.3608]
[1739889327300,0.2077437,96281.0,96271.0,0.2077625]
[1739889327499,0.00015581,96283.0,96271.0,0.2077625]
[1739889327703,0.00015581,96283.0,96269.0,0.36235808]
[1739889328297,0.207743,96281.0,96269.0,0.36235808]
[1739889328497,0.00015581,96283.0,96269.0,0.36235808]
[1739889329005,0.00015581,96283.0,96281.0,0.2077416]
[1739889329206,0.00015581,96283.0,96280.0,0.3608]
[1739889329589,0.207756,96275.0,96269.0,0.36235808]
[1739889330001,0.207756,96275.0,96271.0,0.2077621]
[1739889330402,0.207756,96275.0,96269.0,0.36235808]
[1739889330403,0.00015581,96283.0,96269.0,0.36235808]
[1739889330702,0.00115581,96283.0,96282.0,0.3608]
[1739889330903,4e-05,96291.0,96282.0,0.4903]
[1739889331198,4e-05,96291.0,96290.0,0.5685225]
[1739889331504,0.3608,96313.0,96305.0,0.2076886]
[1739889331702,0.3608,96313.0,96303.0,0.3608]
[1739889332202,0.3608,96313.0,96299.0,0.3608]
[1739889332404,0.2878631,96310.0,96297.0,0.00015581]
[1739889332595,0.2077033,96299.0,96297.0,0.00015581]
[1739889333806,0.0421,96298.0,96297.0,0.00015581]
[1739889334904,0.3608,96301.0,96297.0,0.00015581]
[1739889335201,0.2077009,96300.0,96297.0,0.00015581]
[1739889335406,0.3608,96313.0,96297.0,0.00015581]
[1739889335597,0.004,96299.0,96297.0,0.00015581]
[1739889335998,0.2117042,96299.0,96297.0,8.63e-05]
[1739889337502,0.2077042,96299.0,96297.0,8.63e-05]
[1739889338096,0.004,96301.0,96270.0,4e-05]
[1739889338300,0.2077829,96262.0,96239.0,0.3608]
[1739889338504,0.5685829,96262.0,96239.0,0.3608]
[1739889339799,0.5685829,96262.0,96243.0,0.2078221]
[1739889340106,0.5685829,96262.0,96244.0,0.2078203]
[1739889340308,0.5685829,96262.0,96239.0,0.3608]
[1739889341094,0.5685829,96262.0,96237.0,0.0865]
[1739889341300,0.5685829,96262.0,96234.0,0.00155864]
[1739889342113,0.2077937,96257.0,96256.0,1.437e-05]
[1739889342412,0.2077937,96257.0,96254.0,7e-08]
[1739889342413,0.207798,96255.0,96254.0,7e-08]
[1739889342597,0.00155921,96249.0,96211.0,0.0449]
[1739889342797,0.3608,96224.0,96211.0,0.2527919]
[1739889343111,0.3608,96238.0,96211.0,0.2527919]
[1739889343112,0.2078597,96227.0,96211.0,0.2527919]
[1739889343309,0.2078628,96225.0,96211.0,0.0449]
[1739889343508,0.0001559,96227.0,96225.0,0.2078606]
[1739889344010,0.0001559,96227.0,96226.0,0.0451]
[1739889344215,0.0001559,96227.0,96226.0,0.4059]
[1739889344417,0.3608,96247.0,96226.0,0.4059]
[1739889344714,0.3608,96247.0,96230.0,0.2078508]
[1739889344907,0.3608,96238.0,96226.0,0.4059]
[1739889345306,0.2078535,96230.0,96226.0,0.0451]
[1739889345514,0.3608,96238.0,96223.0,0.3608]
[1739889345708,0.3608,96238.0,96222.0,0.0001559]
[1739889345907,0.3608,96230.0,96222.0,0.0001559]
[1739889346202,0.2078671,96223.0,96222.0,0.0001559]
[1739889346402,0.3618,96230.0,96225.0,0.2078612]
[1739889346612,0.3618,96230.0,96227.0,0.2078567]
[1739889346909,0.3608,96230.0,96227.0,0.2078567]
[1739889347303,0.00192,96238.0,96222.0,0.0001559]
[1739889347511,0.001,96238.0,96225.0,0.3608]
[1739889347714,0.2078443,96234.0,96225.0,0.3608]
[1739889347916,0.001,96238.0,96225.0,0.3608]
[1739889348107,0.001,96238.0,96231.0,0.2078487]
[1739889348302,0.001,96238.0,96225.0,0.3608]
[1739889348513,0.2078511,96231.0,96225.0,0.3608]
[1739889348817,0.2078534,96230.0,96222.0,0.0001559]
[1739889349014,0.2078534,96230.0,96223.0,0.207866]
[1739889349317,0.001,96230.0,96223.0,0.207866]
[1739889349516,0.2078551,96229.0,96223.0,0.207866]
[1739889349812,0.2078658,96224.0,96222.0,0.0001559]
[1739889350210,0.3608,96228.0,96222.0,0.0001559]
[1739889350715,0.3608,96228.0,96215.0,4e-05]
[1739889350916,0.2078822,96216.0,96215.0,4e-05]
[1739889351313,0.2079125,96202.0,96201.0,4e-05]
[1739889351509,0.9295125,96202.0,96201.0,4e-05]
[1739889352025,0.9295125,96202.0,96200.0,0.03014]
[1739889352413,0.9295525,96202.0,96200.0,0.03014]
[1739889352716,0.9305525,96202.0,96200.0,0.03014]
[1739889353021,0.5697525,96202.0,96200.0,0.03014]
[1739889353209,0.5687525,96202.0,96200.0,0.03014]
[1739889355812,4e-05,96202.0,96200.0,0.03014]
[1739889356122,0.05058408,96201.0,96200.0,0.2380553]
[1739889356415,0.05058408,96201.0,96200.0,0.03014]
[1739889356615,0.05058408,96201.0,96200.0,0.2380568]
[1739889357212,0.05058408,96201.0,96200.0,0.03014]
[1739889358320,0.41138408,96201.0,96200.0,0.03014]
[1739889358521,0.2079319,96193.0,96187.0,4e-05]
[1739889358719,0.5687319,96193.0,96187.0,4e-05]
[1739889360020,0.56865881,96193.0,96187.0,4e-05]
[1739889360223,0.2079195,96199.0,96187.0,4e-05]
[1739889360424,0.2079302,96194.0,96187.0,4e-05]
[1739889361127,0.2079427,96188.0,96187.0,4e-05]
[1739889361317,0.5687427,96188.0,96186.0,1e-07]
[1739889361517,0.8687427,96188.0,96186.0,1e-07]
[1739889361826,0.0519933,96174.0,96141.0,0.2080437]
[1739889362015,0.3608,96157.0,96143.0,0.2080393]
[1739889362220,0.3608,96147.0,96139.0,0.046]
[1739889362427,0.3608,96147.0,96131.0,0.0435]
[1739889362428,0.7216,96147.0,96131.0,0.0435]
[1739889362725,0.2080625,96133.0,96131.0,0.0435]
[1739889363316,0.2080666,96131.0,96118.0,0.046]
[1739889363521,0.2080716,96129.0,96119.0,0.0444]
[1739889363832,0.00959358,96147.0,96127.0,0.3608]
[1739889364022,0.3608,96154.0,96127.0,0.3608]
[1739889364330,0.00015598,96134.0,96120.0,0.2878631]
[1739889364527,0.2878631,96170.0,96133.0,0.7216]
[1739889364722,0.2878631,96170.0,96152.0,0.3608]
[1739889364920,0.29697317,96170.0,96152.0,0.3608]
[1739889365324,0.2878631,96170.0,96152.0,0.3608]
[1739889365529,0.3608,96189.0,96162.0,0.3608]
[1739889365830,0.3608,96189.0,96171.0,0.3608]
[1739889365831,0.14028,96188.0,96171.0,0.3608]
[1739889366017,0.00047,96183.0,96171.0,0.3608]
[1739889366222,0.00047,96183.0,96181.0,0.3608]
[1739889366428,0.2878631,96200.0,96181.0,0.3608]
[1739889366817,0.36084,96193.0,96171.0,0.3608]
[1739889367018,0.3608,96184.0,96171.0,0.3608]
[1739889367220,0.36168,96193.0,96171.0,0.3608]
[1739889367424,0.3608,96176.0,96161.0,0.00891535]
[1739889367630,0.3608,96162.0,96148.0,0.3608]
[1739889367834,0.2878631,96160.0,96148.0,0.3608]
[1739889368028,0.3608,96149.0,96134.0,0.0451]
[1739889368331,0.00015598,96164.0,96144.0,0.00015598]
[1739889368636,0.00015598,96164.0,96149.0,0.208026]
[1739889369425,0.00015598,96164.0,96150.0,0.0432]
[1739889369632,0.00015598,96164.0,96150.0,0.0864]
[1739889370041,0.00015598,96164.0,96152.0,0.3608]
[1739889370221,0.3608,96186.0,96167.0,0.2079869]
[1739889370426,0.3608,96186.0,96175.0,0.3608]
[1739889370636,0.3608,96186.0,96176.0,0.0903]
[1739889370929,0.3608,96186.0,96177.0,0.2079665]
[1739889371133,0.05058579,96192.0,96176.0,0.3903]
[1739889371324,0.3608,96197.0,96176.0,0.0903]
[1739889371631,0.2079648,96178.0,96176.0,0.0903]
[1739889371833,0.2079459,96187.0,96176.0,0.0903]
[1739889372134,0.3608,96189.0,96176.0,0.0903]
[1739889372632,0.2079434,96188.0,96176.0,0.0903]
[1739889372833,0.3608,96189.0,96176.0,0.0903]
[1739889373236,0.007,96183.0,96176.0,0.0903]
[1739889374133,0.207961,96180.0,96175.0,0.3608]
[1739889374434,0.207973,96174.0,96173.0,0.00019598]
[1739889374627,0.568773,96174.0,96173.0,0.00019598]
[1739889376129,0.569773,96174.0,96173.0,0.00019598]
[1739889376635,0.3618,96174.0,96173.0,0.00019598]
[1739889377735,0.3618,96174.0,96150.0,4e-05]
[1739889377736,0.2079968,96163.0,96150.0,4e-05]
[1739889377928,0.2080141,96155.0,96150.0,4e-05]
[1739889378126,0.5688141,96155.0,96150.0,4e-05]
[1739889379537,0.5688141,96155.0,96154.0,0.00204]
[1739889380435,0.3608,96155.0,96154.0,0.00204]
[1739889380636,0.50416,96155.0,96154.0,0.00204]
[1739889380828,0.7121741,96155.0,96154.0,0.00204]
[1739889381027,0.9296141,96155.0,96154.0,0.00204]
[1739889381232,0.9296141,96155.0,96150.0,4e-05]
[1739889381233,0.90080953,96155.0,96147.0,4e-05]
[1739889381432,0.2080292,96148.0,96147.0,4e-05]
[1739889382642,0.2100292,96148.0,96147.0,4e-05]
[1739889383942,0.2080336,96146.0,96145.0,0.0001075]
[1739889384144,0.5688336,96146.0,96145.0,0.0001075]
[1739889385237,0.3608,96146.0,96118.0,0.0452]
[1739889385435,0.2080731,96128.0,96118.0,0.6140933]
[1739889385640,0.2080731,96128.0,96118.0,0.406]
[1739889386643,0.2080731,96128.0,96126.0,0.0513]
[1739889387241,0.3608,96127.0,96126.0,0.004]
[1739889388839,0.2080942,96118.0,96117.0,0.00015598]
[1739889389037,0.5648942,96118.0,96117.0,0.00015598]
[1739889389339,0.2040942,96118.0,96117.0,8e-08]
[1739889389844,0.5648942,96118.0,96117.0,8e-08]
[1739889390042,0.5658942,96118.0,96117.0,0.007]
[1739889390244,0.001,96118.0,96117.0,0.007]
[1739889390560,4e-05,96135.0,96125.0,0.2080788]
[1739889390850,4e-05,96135.0,96117.0,0.4122]
[1739889390851,4e-05,96135.0,96130.0,0.5688665]
[1739889391048,4e-05,96135.0,96130.0,0.3608]
[1739889391454,0.208079,96125.0,96124.0,0.14556]
[1739889391643,0.2080891,96121.0,96119.0,4e-05]
[1739889392254,0.2070891,96121.0,96119.0,4e-05]
[1739889392759,0.2080708,96129.0,96119.0,4e-05]
[1739889392959,0.18532191,96131.0,96121.0,0.3608]
[1739889393566,0.18532191,96131.0,96125.0,0.2080786]
[1739889393764,0.05065425,96136.0,96134.0,0.2080595]
[1739889394062,0.21621045,96140.0,96139.0,0.2080487]
[1739889394263,0.2079852,96169.0,96139.0,0.3]
[1739889394562,0.2079852,96169.0,96147.0,0.5688314]
[1739889394862,0.24694326,96149.0,96147.0,0.5688314]
[1739889395068,0.23768326,96149.0,96147.0,0.5688314]
[1739889395658,0.23768326,96149.0,96147.0,0.5718314]
[1739889396058,0.23768326,96149.0,96147.0,0.5688314]
[1739889396266,0.23768326,96149.0,96147.0,0.3638]
[1739889396863,0.00015598,96157.0,96147.0,0.3638]
[1739889396864,0.00015598,96157.0,96147.0,0.6638]
[1739889397070,0.00252054,96175.0,96147.0,0.6638]
[1739889397071,0.00168054,96175.0,96172.0,0.2079773]
[1739889397268,0.00168054,96175.0,96171.0,0.3608]
[1739889397563,0.00168054,96175.0,96168.0,0.1456]
[1739889397770,0.00168054,96175.0,96156.0,0.3608]
[1739889397771,0.00168054,96175.0,96165.0,0.14652]
[1739889398361,0.00168054,96175.0,96172.0,0.3608]
[1739889398564,0.00168054,96175.0,96168.0,0.3608]
[1739889398864,0.13368316,96171.0,96159.0,0.00015598]
[1739889399571,0.13368316,96171.0,96163.0,0.2079952]
[1739889399759,0.00304,96173.0,96163.0,0.3608]
[1739889400269,0.2079852,96169.0,96163.0,0.3608]
[1739889400466,0.13368316,96170.0,96159.0,0.00015598]
[1739889400674,0.00304,96173.0,96159.0,0.00015598]
[1739889400675,0.13368316,96166.0,96159.0,0.00015598]
[1739889400965,0.34167646,96165.0,96159.0,0.00015598]
[1739889401365,0.001,96171.0,96162.0,0.5687989]
[1739889401565,0.001,96171.0,96162.0,0.3608]
[1739889401763,0.001,96171.0,96170.0,0.5687816]
[1739889402772,4e-05,96173.0,96172.0,0.2079773]
[1739889403367,4e-05,96181.0,96172.0,0.2079773]
[1739889403368,4e-05,96181.0,96178.0,0.2079643]
[1739889403556,4e-05,96181.0,96178.0,0.3608]
[1739889405663,0.13483914,96179.0,96178.0,0.3608]
[1739889405964,0.23879914,96179.0,96178.0,0.3608]
[1739889406164,0.23779914,96179.0,96178.0,0.3608]
[1739889406369,0.23779914,96179.0,96178.0,0.3618]
[1739889406874,0.00015598,96179.0,96178.0,0.5697643]
[1739889407064,0.00015598,96179.0,96178.0,0.5687643]
[1739889407265,0.00015598,96179.0,96178.0,0.5697643]
[1739889408163,0.00015598,96179.0,96178.0,0.3618]
[1739889408761,0.00215598,96179.0,96178.0,0.3608]
[1739889409371,0.00015598,96179.0,96178.0,0.3638]
[1739889409670,0.00015598,96179.0,96178.0,0.6638]
[1739889409863,4e-05,96181.0,96179.0,0.2079622]
[1739889410971,4e-05,96181.0,96178.0,0.3638]
[1739889411574,0.13368316,96179.0,96178.0,0.003]
[1739889411769,4e-05,96181.0,96178.0,0.003]
[1739889411974,4e-05,96181.0,96179.0,0.2079622]
[1739889412170,4e-05,96181.0,96179.0,0.5687622]
[1739889412371,0.00015598,96190.0,96189.0,0.2079406]
[1739889412575,0.00015598,96190.0,96189.0,0.3608]
[1739889413571,0.00015598,96190.0,96189.0,0.5687406]
[1739889414468,0.00015598,96190.0,96189.0,0.3608]
[1739889414677,0.00015598,96190.0,96189.0,0.5687406]
[1739889416469,0.00015598,96190.0,96189.0,0.8687406]
[1739889416669,8e-05,96200.0,96197.0,0.2079233]
[1739889416870,8e-05,96200.0,96197.0,0.8687233]
[1739889417176,0.00012,96202.0,96201.0,0.2079146]
[1739889417368,0.00016,96203.0,96201.0,0.5687146]
[1739889417569,0.00016,96203.0,96201.0,0.8687146]
[1739889417772,0.1730508,96206.0,96205.0,0.207906]
[1739889417977,0.0433,96225.0,96212.0,0.2078909]
[1739889418265,0.0451,96235.0,96215.0,0.2078844]
[1739889418476,0.0444,96234.0,96215.0,0.8686844]
[1739889418681,0.00015598,96222.0,96215.0,0.3608]
[1739889418881,0.00015598,96222.0,96215.0,0.50636]
[1739889419082,0.00015598,96222.0,96215.0,0.50624]
[1739889419484,0.00015598,96222.0,96215.0,0.51124]
[1739889419976,0.00015598,96222.0,96215.0,0.50624]
[1739889420176,0.00015598,96222.0,96215.0,0.5098]
[1739889420380,0.0505,96220.0,96215.0,0.5098]
[1739889420574,0.0505,96220.0,96217.0,0.2078784]
[1739889420973,0.0505,96220.0,96215.0,0.3648]
[1739889420974,0.13368316,96218.0,96215.0,0.3648]
[1739889421174,0.23760316,96216.0,96207.0,4e-05]
[1739889421380,0.13368316,96208.0,96207.0,4e-05]
[1739889421877,0.0505,96220.0,96207.0,4e-05]
[1739889422079,0.12868316,96210.0,96208.0,0.2078995]
[1739889422283,0.12868316,96211.0,96209.0,0.2078964]
[1739889422576,0.12868316,96211.0,96207.0,4e-05]
[1739889422782,0.12868316,96211.0,96207.0,0.2129409]
[1739889422984,0.12868316,96211.0,96209.0,0.2078969]
[1739889423385,0.12868316,96210.0,96208.0,0.004]
[1739889423680,0.2078826,96216.0,96208.0,0.004]
[1739889423884,0.12868316,96209.0,96208.0,0.004]
[1739889424181,0.46472,96209.0,96179.0,8e-05]
[1739889424381,0.46472,96209.0,96180.0,8e-05]
[1739889424382,0.44059666,96183.0,96180.0,8e-05]
[1739889424584,0.23264316,96181.0,96174.0,0.3608]
[1739889424779,0.23264316,96175.0,96174.0,0.2824]
[1739889424977,0.23264316,96175.0,96165.0,0.3608]
[1739889424978,0.207973,96174.0,96165.0,0.3608]
[1739889425287,0.207999,96162.0,96158.0,0.00159981]
[1739889425484,0.69748216,96162.0,96158.0,0.00159981]
[1739889425783,0.79848216,96162.0,96158.0,0.00159981]
[1739889425985,0.2080141,96155.0,96154.0,0.00016]
[1739889426176,0.2080184,96153.0,96152.0,0.00015599]
[1739889426375,0.2080249,96150.0,96148.0,0.00012]
[1739889426584,0.23268316,96150.0,96133.0,0.00012]
[1739889426771,0.80152536,96142.0,96133.0,0.00012]
[1739889427976,0.2080487,96139.0,96138.0,0.0695514]
[1739889428189,0.44073186,96139.0,96133.0,0.00012]
[1739889428374,0.23268316,96138.0,96133.0,0.00012]
[1739889428889,0.12868316,96138.0,96133.0,0.00012]
[1739889429183,0.23268316,96138.0,96133.0,0.00012]
[1739889429577,0.3608,96141.0,96133.0,0.00012]
[1739889429781,0.004,96138.0,96133.0,0.00012]
[1739889430179,0.13268316,96138.0,96133.0,0.00012]
[1739889430482,0.44073406,96138.0,96133.0,0.00012]
[1739889431477,0.49134022,96138.0,96133.0,0.00012]
[1739889431673,0.28328932,96138.0,96133.0,0.00012]
[1739889431877,0.2080733,96128.0,96107.0,0.3608]
[1739889432091,0.12868316,96119.0,96111.0,0.2081087]
[1739889432481,0.3608,96132.0,96107.0,0.3608]
[1739889432681,0.12868316,96119.0,96107.0,0.3608]
[1739889432877,0.2080908,96120.0,96107.0,0.3608]
[1739889433183,0.2080908,96120.0,96109.0,0.00015599]
[1739889433184,0.12868316,96119.0,96109.0,0.00015599]
[1739889433390,0.23268316,96119.0,96109.0,0.00015599]
[1739889433882,0.12868316,96110.0,96109.0,0.00015599]
[1739889434085,0.12868316,96110.0,96100.0,0.1]
[1739889434086,0.208131,96101.0,96100.0,0.1]
[1739889434287,0.69761416,96101.0,96100.0,0.1]
[1739889434487,0.59348316,96101.0,96087.0,0.0499]
[1739889434685,0.59348316,96101.0,96059.0,0.3608]
[1739889434686,0.3608,96090.0,96063.0,0.9068]
[1739889434883,0.88476204,96090.0,96063.0,0.90732]
[1739889435088,0.104,96077.0,96063.0,0.90732]
[1739889435491,0.104,96077.0,96068.0,0.2082006]
[1739889436389,0.104,96077.0,96063.0,0.90732]
[1739889436579,0.23268316,96077.0,96063.0,0.90732]
[1739889436783,0.23268316,96077.0,96063.0,0.9068]
[1739889437294,0.23368316,96077.0,96066.0,0.2082049]
[1739889437492,0.23368316,96077.0,96070.0,0.2081979]
[1739889437793,0.105,96077.0,96075.0,0.2081867]
[1739889437993,0.1015,96119.0,96076.0,0.36236118]
[1739889438180,0.18712238,96110.0,96100.0,0.3608]
[1739889438383,0.104,96118.0,96109.0,0.3608]
[1739889438589,0.104,96118.0,96117.0,0.3608]
[1739889439080,0.23268316,96118.0,96117.0,0.3608]
[1739889439486,0.12868316,96118.0,96117.0,0.3608]
[1739889439881,0.00015607,96127.0,96126.0,0.2080768]
[1739889440081,0.00015607,96127.0,96126.0,0.5688768]
[1739889440492,0.18716238,96160.0,96132.0,0.2080639]
[1739889440791,0.00160076,96159.0,96141.0,0.2080443]
[1739889440994,0.00160076,96159.0,96157.0,0.3608]
[1739889441185,0.00160076,96159.0,96157.0,0.1495227]
[1739889441388,0.23272316,96158.0,96157.0,0.1495227]
[1739889442094,0.2080249,96150.0,96148.0,0.00015607]
[1739889442394,0.12868316,96149.0,96148.0,0.00015607]
[1739889442592,0.12868316,96151.0,96148.0,0.36095607]
[1739889442786,0.12868316,96152.0,96150.0,0.2080231]
[1739889442982,0.12868316,96153.0,96148.0,0.36095607]
[1739889443284,0.007,96150.0,96149.0,0.2080271]
[1739889443484,4e-05,96158.0,96157.0,0.2080098]
[1739889443791,4e-05,96158.0,96157.0,0.3608]
[1739889443988,4e-05,96158.0,96157.0,0.50592]
[1739889444591,4e-05,96169.0,96162.0,0.207999]
[1739889444891,4e-05,96189.0,96162.0,0.207999]
[1739889444892,4e-05,96189.0,96170.0,0.2079816]
[1739889445083,4e-05,96189.0,96170.0,0.5687816]
[1739889445686,4e-05,96189.0,96170.0,0.6608]
[1739889445896,4e-05,96189.0,96186.0,0.2079471]
[1739889446198,4e-05,96189.0,96188.0,0.2079427]
[1739889446589,4e-05,96189.0,96188.0,1.1148627]
[1739889447194,0.21483419,96196.0,96188.0,0.90692]
[1739889447495,0.21483419,96196.0,96195.0,0.2079276]
[1739889447790,0.05613419,96196.0,96195.0,0.2079276]
[1739889448186,0.00024,96197.0,96195.0,0.5079276]
[1739889448592,0.00023599,96198.0,96197.0,0.2079233]
[1739889448809,0.1,96200.0,96199.0,0.207919]
[1739889449199,0.1,96200.0,96199.0,0.507919]
[1739889449398,0.1,96200.0,96199.0,1.414639]
[1739889450294,0.1,96200.0,96199.0,1.419639]
[1739889450792,0.1,96200.0,96199.0,0.91172]
[1739889450993,0.1,96200.0,96199.0,1.05748]
[1739889451193,0.1,96200.0,96199.0,1.265399]
[1739889451389,0.1,96200.0,96199.0,0.212919]
[1739889451593,0.33264316,96200.0,96199.0,0.005]
[1739889451886,0.33364316,96200.0,96199.0,0.006]
[1739889452600,0.33264316,96200.0,96199.0,0.005]
[1739889452799,0.2079211,96198.0,96197.0,0.3608]
[1739889453004,0.23264316,96198.0,96197.0,0.3608]
[1739889453192,0.23164316,96198.0,96197.0,0.3608]
[1739889453497,0.23164316,96198.0,96197.0,0.7216]
[1739889454002,0.2079276,96195.0,96194.0,0.3608]
[1739889454596,0.43961076,96195.0,96194.0,0.3608]
[1739889455302,0.2079499,96185.0,96183.0,0.3608]
[1739889455512,0.23168316,96184.0,96183.0,0.3608]
[1739889456610,0.10072,96200.0,96183.0,0.3608]
[1739889456908,0.3079168,96200.0,96199.0,0.3608]
[1739889457298,0.2079423,96189.0,96185.0,0.3608]
[1739889457697,0.2079423,96189.0,96179.0,0.00015599]
[1739889457698,0.2079579,96181.0,96179.0,0.00015599]
[1739889458008,0.23168316,96180.0,96179.0,0.00015599]
[1739889458301,0.12868316,96180.0,96179.0,0.00015599]
[1739889458601,0.43964316,96180.0,96179.0,0.00015599]
[1739889459099,0.23168316,96180.0,96179.0,0.36095599]
[1739889459301,0.00015599,96190.0,96179.0,0.36095599]
[1739889459502,0.00015599,96190.0,96189.0,0.3608]
[1739889459888,0.23183915,96190.0,96189.0,0.3608]
[1739889460204,0.00015599,96190.0,96189.0,0.5687406]
[1739889461099,0.00015599,96190.0,96189.0,0.3608]
[1739889461709,0.00015599,96190.0,96189.0,0.5687406]
[1739889461911,0.1,96200.0,96199.0,0.207919]
[1739889462211,0.1,96200.0,96199.0,0.3608]
[1739889462414,0.22868316,96200.0,96199.0,0.50464]
[1739889462610,0.22868316,96200.0,96199.0,0.3608]
[1739889462806,0.33168316,96200.0,96199.0,0.3608]
[1739889463003,0.53959996,96200.0,96199.0,0.3608]
[1739889463299,0.54259996,96200.0,96199.0,0.3608]
[1739889464101,0.33468316,96200.0,96199.0,0.3608]
[1739889465098,0.33468316,96200.0,96199.0,0.568719]
[1739889465407,0.33468316,96200.0,96199.0,0.3608]
[1739889468507,0.2079382,96191.0,96189.0,0.3608]
[1739889468695,0.23168316,96190.0,96189.0,0.3608]
[1739889469300,0.2899173,96200.0,96196.0,0.2079249]
[1739889469301,0.103,96200.0,96196.0,0.2079249]
[1739889469500,0.103,96200.0,96189.0,0.3608]
[1739889469501,0.103,96200.0,96199.0,0.3608]
[1739889469808,0.1,96200.0,96199.0,0.3608]
[1739889470008,0.2079362,96191.0,96190.0,0.3608]
[1739889470399,0.43961936,96191.0,96190.0,0.3608]
[1739889472202,0.43961936,96191.0,96182.0,4e-05]
[1739889472203,0.2079535,96183.0,96182.0,4e-05]
[1739889472403,0.2079535,96183.0,96161.0,0.04934]
[1739889472404,0.3608,96183.0,96161.0,4e-05]
[1739889472598,0.3608,96168.0,96148.0,0.3608]
[1739889472802,0.2080054,96159.0,96148.0,0.3608]
[1739889473002,0.12856316,96158.0,96148.0,0.3608]
[1739889473611,0.12856316,96158.0,96148.0,0.36095599]
[1739889474104,0.12856316,96158.0,96156.0,0.36084]
[1739889474614,0.12856316,96158.0,96156.0,4e-05]
[1739889475010,0.12856316,96158.0,96156.0,0.36084]
[1739889475205,0.12856316,96158.0,96156.0,0.5688515]
[1739889475405,0.12856316,96158.0,96156.0,0.36136]
[1739889475605,0.12456316,96158.0,96156.0,0.5688513]
[1739889475912,4e-05,96164.0,96163.0,0.2079958]
[1739889476605,4e-05,96164.0,96158.0,0.3608]
[1739889476606,8e-05,96164.0,96162.0,0.2079982]
[1739889476915,0.00012,96164.0,96162.0,0.2079982]
[1739889477509,0.00015599,96167.0,96166.0,0.2079903]
[1739889477705,0.00015599,96167.0,96166.0,0.5687903]
[1739889478113,0.00019599,96167.0,96166.0,0.5687903]
[1739889478511,0.00023599,96167.0,96166.0,0.5687903]
[1739889478709,0.00727599,96167.0,96166.0,0.3608]
[1739889478905,0.00731599,96167.0,96166.0,0.3608]
[1739889480008,0.33986725,96167.0,96165.0,0.90704]
[1739889480316,0.12456316,96166.0,96165.0,0.90652]
[1739889482012,0.007,96166.0,96165.0,0.90652]
[1739889482215,0.007,96166.0,96165.0,1.04724]
[1739889482920,4e-05,96170.0,96169.0,0.2079838]
[1739889483117,0.21537184,96180.0,96176.0,0.2079687]
[1739889483319,0.21537184,96180.0,96176.0,0.5687687]
[1739889483929,0.21537184,96180.0,96176.0,0.3608]
[1739889484232,0.21537184,96180.0,96176.0,0.50148]
[1739889484722,0.21537184,96180.0,96176.0,1.408]
[1739889484925,0.21537184,96180.0,96179.0,0.2079622]
[1739889484926,0.07485184,96180.0,96179.0,0.2079622]
[1739889485324,0.07485184,96180.0,96179.0,0.5079622]
[1739889485631,0.07485184,96180.0,96179.0,0.2079622]
[1739889486030,0.00019599,96186.0,96181.0,0.2079579]
[1739889486231,0.2079912,96185.0,96176.0,0.3608]
[1739889486433,0.00015599,96186.0,96177.0,0.14056]
[1739889486636,0.00015599,96186.0,96176.0,0.3608]
[1739889486637,0.33252966,96177.0,96176.0,0.3608]
[1739889486930,0.33252966,96177.0,96176.0,0.2792]
[1739889487130,0.2049795,96171.0,96170.0,0.00015599]
[1739889487328,0.2079946,96164.0,96163.0,0.90712]
[1739889487530,0.2079946,96164.0,96163.0,0.90652]
[1739889487531,0.33255776,96164.0,96163.0,0.90652]
[1739889487722,0.33255776,96164.0,96146.0,0.00156]
[1739889487723,0.2080312,96148.0,96146.0,0.00156]
[1739889487923,0.17546316,96147.0,96146.0,0.00156]
[1739889488423,0.1869173,96170.0,96154.0,0.2080152]
[1739889488627,0.00015599,96156.0,96154.0,0.2080152]
[1739889488826,0.12456316,96155.0,96146.0,0.00156]
[1739889489029,0.12456316,96147.0,96146.0,0.00156]
[1739889489432,0.2080514,96138.0,96128.0,0.30761379]
[1739889489632,0.12456316,96129.0,96128.0,0.30761379]
[1739889490033,0.12456316,96129.0,96125.0,0.3608]
[1739889490238,0.12456316,96126.0,96125.0,0.3608]
[1739889490535,0.48536316,96126.0,96109.0,0.90704]
[1739889490833,0.2080963,96117.0,96116.0,0.00015599]
[1739889491030,0.2050963,96117.0,96116.0,0.00015599]
[1739889491231,0.32965946,96117.0,96116.0,0.00015599]
[1739889491526,0.32965946,96117.0,96102.0,0.3608]
[1739889491733,0.12056316,96106.0,96096.0,0.24843604]
[1739889492339,0.12056316,96106.0,96104.0,0.2081225]
[1739889492843,0.12056316,96106.0,96103.0,0.3608]
[1739889493038,0.12056316,96106.0,96096.0,0.24859211]
[1739889494034,0.11856316,96106.0,96096.0,0.24859211]
[1739889494235,0.11856316,96106.0,96105.0,0.36236046]
[1739889495144,0.11856316,96106.0,96105.0,0.36336046]
[1739889495331,0.11856316,96106.0,96105.0,0.57148276]
[1739889495732,0.0498,96114.0,96105.0,0.57148276]
[1739889495936,0.00015607,96115.0,96113.0,0.3608]
[1739889496442,0.4667,96132.0,96113.0,0.3608]
[1739889496443,0.3608,96159.0,96113.0,0.3608]
[1739889496633,0.1869173,96150.0,96132.0,0.3608]
[1739889496828,0.0502,96154.0,96105.0,0.00256046]
[1739889496829,0.11856316,96114.0,96105.0,0.36336046]
[1739889497034,0.36236121,96133.0,96105.0,0.36336046]
[1739889497035,0.11856316,96106.0,96105.0,0.36336046]
[1739889497331,0.11856316,96106.0,96105.0,0.00156046]
[1739889498042,0.00015607,96115.0,96114.0,0.2081028]
[1739889498239,0.00015607,96115.0,96114.0,0.5689028]
[1739889498837,0.11871923,96115.0,96114.0,0.3608]
[1739889499044,0.11871923,96115.0,96106.0,0.0525]
[1739889499235,0.00015607,96115.0,96113.0,0.3608]
[1739889499431,0.00015607,96115.0,96114.0,0.2081028]
[1739889499632,0.0531,96132.0,96113.0,0.3608]
[1739889499835,0.1869173,96130.0,96113.0,0.3608]